[Event "Singapore Open-A 2024"]
[Site "Singapore"]
[Date "2024.11.29"]
[Round "1.1"]
[White "Nitin, S.."]
[Black "Murzin, Volodar"]
[Result "0-1"]
[ECO "B46"]
[WhiteElo "2341"]
[BlackElo "2664"]
[Annotator "TA"]
[PlyCount "86"]
[EventDate "2024.11.29"]
[EventType "swiss"]
[EventCountry "SIN"]
[SourceTitle "playchess.com"]
[Source "ChessBase"]
[SourceQuality "1"]
[TimeControl "5400+30"]

{[%evp 23,86,27,41,0,0,0,-4,-5,0,-8,-10,-12,-9,-16,0,0,20,27,4,5,38,37,44,16,88,30,51,27,20,43,45,35,45,25,26,24,28,22,14,0,0,-84,-84,-86,-87,-79,-86,-86,-86,-84,0,0,0,0,0,-87,-95,-93,-93,-391,-385,-391,-394,-5365,-5310]} 1. e4 {[%emt 0:00:34]} c5 {[%emt 0:00:07]} 2. Nf3 {[%emt 0:01:24]} e6 {[%emt 0:00:04]} 3. d4 {[%emt 0:00:46]} cxd4 {[%emt 0:00:05]} 4. Nxd4 {[%emt 0:00:06]} Nc6 {[%emt 0:00:07]} 5. Nc3 {[%emt 0:03:10]} a6 {[%emt 0:00:08]} 6. Nxc6 {[%emt 0:07:32]} bxc6 {[%emt 0:00:03]} 7. Bd3 {[%emt 0:00:15]} d5 {[%emt 0:00:08]} 8. O-O {[%emt 0:00:07]} Nf6 {[%emt 0:00:04]} 9. Qe2 {[%emt 0:02:58]} Be7 {[%emt 0:00:20]} 10. b3 {[%emt 0:06:05]} O-O {[%emt 0:02:14]} 11. Bb2 {[%emt 0:00:24]} Bb7 {[%emt 0:14:45]} 12. Rad1 {[%emt 0:10:25]} Qc7 {[%emt 0:04:29]} 13. Rfe1 {[%emt 0:08:42]} Rfd8 {[%emt 0:06:50]} 14. h3 {[%emt 0:04:11]} Bf8 {[%emt 0:19:18]} 15. Qf3 {[%emt 0:32:54] The position is equal.} c5 {[%emt 0:12:00]} 16. e5 {[%emt 0:03:58]} d4 {[%emt 0:24:40][%csl LRc3,LRf3]} 17. Ne4 {[%emt 0:00:35]} Nxe4 {[%emt 0:08:01]} 18. Bxe4 {[%emt 0:00:12]} Bd5 {[%emt 0:01:20]} 19. c3 {[%emt 0:06:33]} Bxe4 {[%emt 0:03:29]} 20. Rxe4 {[%emt 0:02:52][%cal Rc3d4]} Qa5 $132 {[%emt 0:00:37][%mdl 2048] Black is not keeping still} 21. Ra1 {[%emt 0:02:53][%cal Rc3d4]} Rac8 {[%emt 0:01:29]} 22. cxd4 {[%emt 0:01:58]} c4 {[%emt 0:00:32]} 23. Re3 {[%emt 0:01:38]} Qb5 {[%emt 0:00:29]} (23... g6 $11) 24. Rb1 {[%emt 0:01:30]} (24. Rc1 $16) 24... g6 {[%emt 0:00:37]} 25. Qe4 {[%emt 0:00:17]} Qa5 {[%emt 0:00:29] [#]} 26. a3 $1 {[%emt 0:00:48]} cxb3 {[%emt 0:00:33]} (26... Bxa3 $2 27. Ra1 $18 (27. Bxa3 Qxa3 28. bxc4 Qa4 $11)) (26... Qb5 27. bxc4) 27. Rxb3 {[%emt 0:00:01]} Qa4 {[%emt 0:00:27]} 28. Qf3 {[%emt 0:01:01]} Rb8 {[%emt 0:01:05]} 29. Ba1 {[%emt 0:00:11]} Rb5 {[%emt 0:00:00][%cal Of8a3]} 30. Rxb5 {[%emt 0:00:18]} axb5 {[%emt 0:00:00]} 31. Qb3 {[%emt 0:00:49]} Rc8 $1 {[%emt 0:00:20]} 32. Kh2 {[%emt 0:00:37]} (32. Bc3 $11 {keeps the balance.}) 32... Bxa3 $17 {[%emt 0:00:24]} 33. d5 {[%emt 0:00:32] [#]} (33. Qxb5 Qxb5 34. Rxb5 Rc1) 33... Rc1 $1 {[%emt 0:01:02]} 34. Qxa4 {[%emt 0:00:34]} bxa4 {[%emt 0:00:02][%mdl 4096] Endgame. KRB-KRB} 35. Rb8+ {[%emt 0:00:18] [#]} Kg7 $1 {[%emt 0:00:10]} 36. Bd4 {[%emt 0:00:25]} Rc4 {[%emt 0:01:23]} ({Reject} 36... exd5 $6 37. e6+ f6 38. g3 $11) (36... Rd1 $17 37. Be3 h6 (37... exd5 38. Bg5 $11) (37... Rxd5 38. Ra8 $15)) 37. Be3 $11 {[%emt 0:00:36]} exd5 {[%emt 0:00:11] White must now prevent ...Re4.} 38. Bg5 {[%emt 0:00:41]} Bc1 {[%emt 0:00:53]} 39. Bxc1 {[%emt 0:00:38]} (39. Bf6+ $11 Kh6 40. Rb7) 39... Rxc1 $17 {[%emt 0:00:02]} 40. Ra8 {[%emt 0:00:08]} Rc4 {[%emt 0:00:49] And now ...d4 would win.} 41. Ra5 $2 {[%emt 0:00:16][%mdl 8192]} (41. Kg3 $17 {was worth a try.}) 41... d4 $19 {[%emt 0:00:17] Hoping for ...d3.} 42. Kg3 {[%emt 0:00:18]} d3 {[%emt 0:00:51]} 43. Kf3 $2 {[%emt 0:00:20]} (43. Rd5 Rb4 (43... Rc3 44. Kf3 $17) 44. f3) 43... Rd4 {[%emt 0:00:11] Weighted Error Value: White=0.52/Black=0.10 (very precise) .  Loses game:     	White=1     	---        Mistake:       	White=4     	Black=2      Inaccurate:     	White=1     	Black=1      OK:         	White=8     	Black=10     Best:        	White=5     	Black=4      Strong:       	---       	Black=3} 0-1

[Event "Singapore Open-A 2024"]
[Site "Singapore"]
[Date "2024.11.29"]
[Round "1.2"]
[White "Pichot, Alan"]
[Black "Chan, Yi Ren Daniel"]
[Result "1/2-1/2"]
[ECO "C78"]
[WhiteElo "2649"]
[BlackElo "2324"]
[Annotator "RC"]
[PlyCount "120"]
[EventDate "2024.11.29"]
[EventType "swiss"]
[EventCountry "SIN"]
[SourceTitle "playchess.com"]
[Source "ChessBase"]
[SourceQuality "1"]
[TimeControl "5400+30"]

1. e4 {[%emt 0:00:15]} e5 {[%emt 0:00:21]} 2. Nf3 {[%emt 0:00:10]} Nc6 {[%emt 0:00:12]} 3. Bb5 {[%emt 0:00:21]} a6 {[%emt 0:01:18]} 4. Ba4 {[%emt 0:00:09]} Nf6 {[%emt 0:00:59]} 5. O-O {[%emt 0:00:26]} b5 {[%emt 0:00:40]} 6. Bb3 {[%emt 0:00:08]} Bc5 {[%emt 0:00:45]} 7. a4 {[%emt 0:02:54]} Rb8 {[%emt 0:01:30]} 8. c3 {[%emt 0:00:54]} d6 {[%emt 0:00:46]} 9. d4 {[%emt 0:00:12]} Bb6 {[%emt 0:00:26]} 10. a5 {[%emt 0:00:46]} Ba7 {[%emt 0:00:06]} 11. h3 {[%emt 0:01:09]} Bb7 {[%emt 0:12:44]} 12. Be3 {[%emt 0:00:57]} Nxe4 {[%emt 0:27:19]} 13. d5 {[%emt 0:00:51]} Bxe3 {[%emt 0:01:26]} 14. dxc6 {[%emt 0:00:09]} Nxf2 {[%emt 0:06:36]} 15. Qe2 {[%emt 0:00:19]} Nxh3+ {[%emt 0:08:22]} 16. Kh1 {[%emt 0:00:10]} Bc5 {[%emt 0:15:26]} 17. cxb7 {[%emt 0:05:31]} Nf4 {[%emt 0:01:01]} 18. Qe4 {[%emt 0:02:18]} O-O {[%emt 0:02:08]} 19. g3 {[%emt 0:22:34]} d5 {[%emt 0:07:17]} 20. Qxe5 {[%emt 0:03:36]} Bd6 {[%emt 0:00:20]} 21. Qg5 {[%emt 0:17:57]} Ne2 {[%emt 0:01:02]} 22. Qxd8 {[%emt 0:05:29]} Nxg3+ {[%emt 0:01:41]} 23. Kg2 {[%emt 0:00:12]} Rfxd8 {[%emt 0:00:03]} 24. Bxd5 {[%emt 0:08:53]} Nxf1 {[%emt 0:01:16]} 25. Kxf1 {[%emt 0:00:06]} Bf4 {[%emt 0:03:12]} 26. c4 {[%emt 0:00:29]} Rd6 {[%emt 0:03:38]} 27. Nd4 {[%emt 0:02:07]} Kf8 {[%emt 0:02:05]} 28. cxb5 {[%emt 0:05:00]} Be3 {[%emt 0:00:11]} 29. Nc6 {[%emt 0:08:47]} Rxb7 {[%emt 0:00:26]} 30. Nc3 {[%emt 0:00:06]} Rxb5 {[%emt 0:01:29]} 31. Nxb5 {[%emt 0:00:22]} Rxd5 {[%emt 0:00:10]} 32. Ke2 {[%emt 0:04:40]} Rxb5 {[%emt 0:00:40]} 33. Kxe3 {[%emt 0:00:05]} Rxb2 {[%emt 0:00:08]} 34. Ra4 {[%emt 0:02:42]} Rh2 {[%emt 0:01:05]} 35. Rb4 {[%emt 0:01:13]} g5 {[%emt 0:00:30]} 36. Rb8+ {[%emt 0:01:02]} Kg7 {[%emt 0:00:01]} 37. Ra8 {[%emt 0:00:12]} h5 {[%emt 0:00:51]} 38. Rxa6 {[%emt 0:00:05]} h4 {[%emt 0:00:38]} 39. Kf3 {[%emt 0:03:12]} Ra2 {[%emt 0:00:19]} 40. Nd4 {[%emt 0:00:51]} f6 {[%emt 0:00:33]} 41. Nf5+ {[%emt 0:02:38]} Kg6 {[%emt 0:00:16]} 42. Ne7+ {[%emt 0:00:43]} Kh5 {[%emt 0:00:43]} 43. Nd5 {[%emt 0:00:41]} g4+ {[%emt 0:00:34]} 44. Ke4 {[%emt 0:00:28]} Ra4+ {[%emt 0:00:31]} 45. Ke3 {[%emt 0:00:36]} Ra3+ {[%emt 0:00:21]} 46. Kf4 {[%emt 0:01:05]} Rf3+ {[%emt 0:00:49]} 47. Ke4 {[%emt 0:00:00]} f5+ {[%emt 0:00:28]} 48. Ke5 {[%emt 0:00:00]} h3 {[%emt 0:00:20]} 49. Ra8 {[%emt 0:00:00]} Kh4 {[%emt 0:00:20]} 50. Ne7 {[%emt 0:01:07]} Kg3 {[%emt 0:00:42]} 51. Nxf5+ {[%emt 0:00:15]} Kf2 {[%emt 0:00:15]} 52. Rh8 {[%emt 0:00:59]} Ra3 {[%emt 0:00:09]} 53. Kf4 {[%emt 0:00:37]} Ra4+ {[%emt 0:00:04]} 54. Kg5 {[%emt 0:00:06]} Kg1 {[%emt 0:00:59]} 55. Rb8 {[%emt 0:00:48]} h2 {[%emt 0:01:11]} 56. Rb1+ {[%emt 0:00:08]} Kg2 {[%emt 0:00:32]} 57. Rb2+ {[%emt 0:00:15]} Kh3 {[%emt 0:00:32]} 58. Rb3+ {[%emt 0:00:31]} Kg2 {[%emt 0:00:07]} 59. Rb2+ {[%emt 0:00:57]} Kh3 {[%emt 0:00:07]} 60. Rb3+ {[%emt 0:00:04]} Kg2 {[%emt 0:00:08]} 1/2-1/2

[Event "Singapore Open-A 2024"]
[Site "Singapore"]
[Date "2024.11.29"]
[Round "1.3"]
[White "Murshed, Niaz"]
[Black "Indjic, Aleksandar"]
[Result "0-1"]
[ECO "A75"]
[WhiteElo "2323"]
[BlackElo "2623"]
[Annotator "TA"]
[PlyCount "60"]
[EventDate "2024.11.29"]
[EventType "swiss"]
[EventCountry "SIN"]
[SourceTitle "playchess.com"]
[Source "ChessBase"]
[SourceQuality "1"]
[TimeControl "5400+30"]

{[%evp 26,60,51,50,45,34,49,10,72,70,57,34,39,16,16,12,21,35,34,0,0,-87,-65,-99,-48,-31,-7,-18,0,0,0,0,0,-22,-12,-614,-594]} 1. d4 {[%emt 0:00:08]} Nf6 {[%emt 0:00:30]} 2. c4 {[%emt 0:00:44]} e6 {[%emt 0:00:10]} 3. Nf3 {[%emt 0:01:57]} c5 {[%emt 0:00:10]} 4. d5 {[%emt 0:03:13]} d6 {[%emt 0:00:14]} 5. Nc3 {[%emt 0:00:08]} exd5 {[%emt 0:00:06]} 6. cxd5 {[%emt 0:00:05]} g6 {[%emt 0:00:08]} 7. e4 {[%emt 0:00:57]} a6 {[%emt 0:00:07]} 8. a4 {[%emt 0:00:19]} Bg4 {[%emt 0:00:12]} 9. Be2 {[%emt 0:01:51]} Bxf3 {[%emt 0:00:53]} 10. Bxf3 {[%emt 0:00:16]} Nbd7 {[%emt 0:00:29]} 11. O-O {[%emt 0:02:15]} Bg7 {[%emt 0:00:38]} 12. Bf4 {[%emt 0:03:15]} Qe7 {[%emt 0:00:11]} 13. Re1 {[%emt 0:01:33]} O-O {[%emt 0:01:34]} 14. a5 {[%emt 0:03:17]} Rab8 {[%emt 0:02:00]} 15. Be2 {[%emt 0:16:56]} Rfe8 {[%emt 0:05:10]} 16. Bf1 {[%emt 0:01:52]} h5 {[%emt 0:00:48]} (16... Nh5 $11 17. Be3 Bxc3 18. bxc3 Qxe4) 17. Qd2 $16 {[%emt 0:07:39]} Nh7 {[%emt 0:00:34]} 18. h3 {[%emt 0:03:53]} g5 {[%emt 0:05:27]} 19. Be3 {[%emt 0:00:29]} g4 {[%emt 0:02:44]} 20. Bf4 {[%emt 0:12:11]} Ne5 {[%emt 0:01:43]} 21. hxg4 {[%emt 0:01:27]} hxg4 {[%emt 0:00:10]} 22. Nd1 {[%emt 0:00:22]} Ng6 {[%emt 0:00:35]} 23. Bh6 {[%emt 0:04:19]} (23. Bh2 $11 {keeps the balance.}) 23... Bd4 $17 {[%emt 0:10:14]} 24. g3 {[%emt 0:08:44] Wards off Qh4} Ne5 {[%emt 0:00:27]} (24... Nf6 $17 25. Bg2 Qe5) 25. Bg2 $15 {[%emt 0:00:28]} Qf6 {[%emt 0:01:26]} 26. Bf4 $1 {[%emt 0:01:54]} Qg6 {[%emt 0:02:03]} 27. Ne3 {[%emt 0:05:34]} Bxe3 {[%emt 0:00:35]} 28. Qxe3 {[%emt 0:00:48][%cal Ob2b4]} Qh5 {[%emt 0:00:58]} 29. Rf1 {[%emt 0:03:30]} Nf6 {[%emt 0:01:14] [#] Hoping for ...Nf3+.} 30. Rad1 $2 {[%emt 0:00:52][%mdl 8192]} (30. Qc3 $11) 30... Nf3+ {[%emt 0:01:23] Weighted Error Value: White=0.49/Black=0.14 (very precise) .  Loses game:     	White=1     	---        Mistake:       	White=1     	Black=2      Inaccurate:     	White=3     	---        OK:         	White=4     	Black=3      Best:        	---       	Black=2      Strong:       	White=1     	---} 0-1

[Event "Singapore Open-A 2024"]
[Site "Singapore"]
[Date "2024.11.29"]
[Round "1.4"]
[White "Lu, Shanglei"]
[Black "Aquino, Jethro Dino"]
[Result "1/2-1/2"]
[ECO "B22"]
[WhiteElo "2609"]
[BlackElo "2321"]
[Annotator "TA"]
[PlyCount "44"]
[EventDate "2024.11.29"]
[EventType "swiss"]
[EventCountry "SIN"]
[SourceTitle "playchess.com"]
[Source "ChessBase"]
[SourceQuality "1"]
[TimeControl "5400+30"]

{[%evp 9,44,7,28,17,19,1,10,-17,-18,-25,-27,-18,-17,-15,-29,-20,-18,-35,-37,-48,-41,-48,-44,-77,-74,-62,-64,-71,-66,-86,-78,-75,0,-86,0,-72,0]} 1. e4 {[%emt 0:00:03][%cal Be2e4,Be4e5][%mdl 32]} c5 {[%emt 0:00:28]} 2. Nf3 {[%emt 0:00:06]} e6 {[%emt 0:00:25]} 3. c3 {[%emt 0:00:17][%cal Bc2c3,Bc3c4][%mdl 32]} Nf6 {[%emt 0:01:45][%cal Bg8f6,Bf6d5,Bd5c7][%mdl 32]} 4. e5 {[%emt 0:01:17]} Nd5 {[%emt 0:00:06]} 5. a3 {[%emt 0:00:02]} d6 {[%emt 0:07:35]} 6. d4 {[%emt 0:06:18]} cxd4 {[%emt 0:01:17]} 7. c4 {[%emt 0:02:00]} Nc7 {[%emt 0:02:24]} 8. exd6 {[%emt 0:06:57] The position is equal.} Qxd6 {[%emt 0:03:22]} 9. Qxd4 {[%emt 0:00:57]} Qxd4 {[%emt 0:03:40]} 10. Nxd4 {[%emt 0:00:08]} e5 {[%emt 0:00:21] Wards off Bf4} 11. Nb5 {[%emt 0:07:55]} Nxb5 {[%emt 0:03:54]} 12. cxb5 {[%emt 0:00:09]} Be6 {[%emt 0:01:18]} 13. Nc3 {[%emt 0:04:36]} Nd7 {[%emt 0:01:40]} 14. Be2 {[%emt 0:00:53]} f5 {[%emt 0:06:21]} 15. Be3 {[%emt 0:19:44]} Bc5 {[%emt 0:01:47]} 16. Rc1 {[%emt 0:01:37]} Bxe3 {[%emt 0:09:28]} 17. fxe3 {[%emt 0:01:01]} Ke7 {[%emt 0:01:57]} 18. O-O {[%emt 0:14:36]} Rac8 {[%emt 0:04:19]} 19. Na4 {[%emt 0:02:22]} Bb3 {[%emt 0:02:15]} 20. Nc3 {[%emt 0:00:07]} Be6 {[%emt 0:03:33]} 21. Na4 $1 {[%emt 0:00:31]} Bb3 {[%emt 0:01:09]} 22. Nc3 {[%emt 0:00:27]} Be6 {[%emt 0:00:05] Weighted Error Value: White=0.08 (flawless) /Black=0.13 (very precise) .  Mistake:       	---       	Black=1      Inaccurate:     	White=2     	---        OK:         	White=5     	Black=6      Best:        	---       	Black=1      Strong:       	White=1     	---} (22... g6 $17) 1/2-1/2

[Event "Singapore Open-A 2024"]
[Site "Singapore"]
[Date "2024.11.29"]
[Round "1.5"]
[White "Frayna, Janelle Mae"]
[Black "Karthik Venkataraman"]
[Result "0-1"]
[ECO "A37"]
[WhiteElo "2314"]
[BlackElo "2605"]
[Annotator "TA"]
[PlyCount "104"]
[EventDate "2024.11.29"]
[EventType "swiss"]
[EventCountry "SIN"]
[SourceTitle "playchess.com"]
[Source "ChessBase"]
[SourceQuality "1"]
[TimeControl "5400+30"]

{[%evp 12,104,0,8,19,6,18,8,7,4,6,0,0,0,12,0,0,-17,0,0,8,8,0,-8,-4,-28,-41,-25,-26,-31,-28,-31,-14,-42,-37,-38,-47,-119,-113,-120,-116,-116,-116,-139,-139,-160,-156,-212,-210,-212,-189,-196,-196,-187,-187,-251,-251,-248,-195,-232,-177,-184,-156,-194,-191,-205,-190,-214,-201,-212,-204,-205,-196,-301,-216,-204,-185,-185,-185,-185,-185,-185,-185,-5539,-5539,-29969,-29970,-29969,-29971,-29971,-29972,-29974,-29975,-29975,-29975]} 1. Nf3 {[%emt 0:00:19]} c5 {[%emt 0:00:33]} 2. c4 {[%emt 0:01:27]} Nc6 {[%emt 0:00:23]} 3. g3 {[%emt 0:00:21]} g6 {[%emt 0:00:12]} 4. Bg2 {[%emt 0:00:24]} Bg7 {[%emt 0:00:07]} 5. Nc3 {[%emt 0:00:10]} d6 {[%emt 0:00:10]} 6. O-O {[%emt 0:01:06]} Bg4 {[%emt 0:00:17]} 7. h3 {[%emt 0:03:04]} Bxf3 {[%emt 0:00:31]} 8. Bxf3 {[%emt 0:00:03]} e6 {[%emt 0:00:08]} 9. d3 {[%emt 0:02:53]} Nge7 {[%emt 0:00:14] The position is equal.} 10. Bg5 {[%emt 0:04:24]} h6 {[%emt 0:01:48]} 11. Bd2 {[%emt 0:03:52]} O-O {[%emt 0:00:30]} 12. a3 {[%emt 0:00:43][%cal Ob2b4]} Qd7 {[%emt 0:01:17]} 13. Qa4 {[%emt 0:03:08]} d5 {[%emt 0:06:07]} 14. Bg2 {[%emt 0:08:32]} a6 {[%emt 0:05:24]} 15. cxd5 {[%emt 0:11:38]} exd5 {[%emt 0:01:08]} 16. Rac1 $1 {[%emt 0:04:11]} b5 {[%emt 0:03:53]} 17. Qd1 {[%emt 0:01:45]} Rac8 {[%emt 0:00:13]} 18. e4 {[%emt 0:09:20][%cal Re4d5]} Ne5 {[%emt 0:04:26]} 19. Bf4 {[%emt 0:01:48]} dxe4 {[%emt 0:02:20]} 20. Bxe5 {[%emt 0:00:24]} Bxe5 {[%emt 0:00:07]} 21. dxe4 {[%emt 0:00:16]} Qe6 {[%emt 0:05:41]} 22. Qd2 {[%emt 0:00:50]} h5 {[%emt 0:00:30]} 23. f4 {[%emt 0:41:22]} Rfd8 {[%emt 0:00:52]} 24. Nd5 {[%emt 0:00:00] White is on the road to losing.} (24. Qe2 $15 Bd4+ 25. Kh2) 24... Bd4+ $17 {[%emt 0:00:27]} 25. Kh2 {[%emt 0:00:00][%cal Of4f5]} Nxd5 {[%emt 0:00:19]} 26. exd5 {[%emt 0:00:00]} Qf6 {[%emt 0:00:04]} 27. Rc2 {[%emt 0:00:00]} Re8 {[%emt 0:00:39]} 28. b4 {[%emt 0:00:00] White is weak on the dark squares} h4 {[%emt 0:02:21] Black is more active.} 29. g4 {[%emt 0:00:00]} (29. gxh4 $17 {was called for.} Be3 (29... Qxh4 $2 30. Kh1 $17) 30. Qd1) 29... Be3 $19 {[%emt 0:01:09]} 30. Qc3 {[%emt 0:00:00]} Bxf4+ {[%emt 0:05:18]} 31. Kh1 {[%emt 0:00:00]} Qxc3 {[%emt 0:00:05]} 32. Rxc3 {[%emt 0:00:00]} Bd6 {[%emt 0:00:06]} 33. Rcf3 {[%emt 0:00:00]} (33. bxc5 $142 Rxc5 34. Rxc5 Bxc5 35. d6) 33... cxb4 {[%emt 0:03:11]} 34. axb4 {[%emt 0:00:00]} Re7 {[%emt 0:00:07]} ({Don't take} 34... Bxb4 35. Rxf7 Rcd8 36. R7f6 $17) 35. Ra3 {[%emt 0:00:00]} Ra7 {[%emt 0:00:54]} 36. Rfa1 {[%emt 0:00:00][%cal Og2f1]} Rca8 {[%emt 0:09:38]} 37. Rb1 {[%emt 0:00:00]} a5 {[%emt 0:00:47]} 38. Rxa5 {[%emt 0:00:00]} Rxa5 {[%emt 0:00:05]} 39. bxa5 {[%emt 0:00:00]} Rxa5 {[%emt 0:00:04][%mdl 4096] Endgame. KRB-KRB} 40. Bf1 {[%emt 0:00:00]} b4 {[%emt 0:00:05][%cal Oa5a3]} 41. Bc4 {[%emt 0:00:00]} Ra7 {[%emt 0:01:26]} 42. Rb2 {[%emt 0:02:13]} (42. Rb3 $142) 42... Re7 {[%emt 0:09:31]} 43. Re2 {[%emt 0:00:50]} Rxe2 {[%emt 0:01:21]} 44. Bxe2 {[%emt 0:00:01] KB-KB} Kg7 {[%emt 0:00:06]} 45. Kg2 {[%emt 0:02:24]} Kf6 {[%emt 0:00:19]} 46. Kf3 {[%emt 0:00:56]} Ke5 {[%emt 0:00:06]} 47. Bc4 {[%emt 0:04:49] [#]} (47. Bb5) 47... Kd4 {[%emt 0:00:16]} 48. Ba2 {[%emt 0:00:05]} Kc3 {[%emt 0:01:11] Black mates.} 49. g5 {[%emt 0:00:56]} Kc2 {[%emt 0:00:34]} 50. Bc4 {[%emt 0:00:21] [#]} b3 $1 {[%emt 0:01:55]} 51. Ke4 {[%emt 0:00:50]} b2 {[%emt 0:00:38]} 52. Kd4 {[%emt 0:00:32]} b1=Q {[%emt 0:00:50] Weighted Error Value: White=0.37/Black=0.08 (flawless) .  Mistake:       	White=5     	---        Inaccurate:     	White=2     	---        OK:         	White=9     	Black=17     Best:        	White=2     	Black=2      Strong:       	White=1     	---} 0-1